Workbook

Sheet Synaptic Transmission
F1: 20 Hz | I1: 40 Hz | L1: 120 Hz
G2: Failure Rate | J2: Failure Rate | M2: Failure Rate
A3: Group | B3: Age (Days) | C3: Synapse ID | D3: 1st uIPSC Amplitude (pA) | E3: Latency (ms) | F3: PPR | G3: 1st | H3: Final (5th) | I3: PPR | J3: 5th | K3: Final | L3: PPR | M3: 5th | N3: Final
A5: Scn1a+/- P16-21 SUDEP
B6: 19 | C6: E#2-E#1 | D6: 165.7 | E6: 0.79 | F6: 0.6451418226 | G6: 0.05 | H6: 0.1 | I6: 0.769874477 | J6: 0 | K6: 0.1 | L6: 0.4581383255 | M6: 0.05 | N6: 0.1
B7: 19 | C7: E#2-M#2 | D7: 122.8 | E7: 0.79 | F7: 0.5806188925 | G7: 0 | H7: 0.15 | I7: 0.7150063052 | J7: 0.2 | K7: 0.2 | L7: 0.5737009544 | M7: 0.4 | N7: 0.35
B8: 18 | C8: G#2-E#1 | D8: 197.8400128 | E8: 0.87 | F8: 0.5787901154 | G8: 0 | H8: 0 | I8: 0.6490015361 | J8: 0.2 | K8: 0.2 | L8: 0.5791245791 | M8: 0.1 | N8: 0.3
B9: 18 | C9: G#2-E#2 | D9: 122.0379567 | E9: 0.76 | F9: 0.4150406275 | G9: 0 | H9: 0.3 | I9: 0.5291338583 | J9: 0.2 | K9: 0.5 | L9: 0.7598091198 | M9: 0.25 | N9: 0.15
B10: 18 | C10: G#2-M#1 | D10: 51.99037674 | E10: 0.59 | F10: 0.4878909872 | G10: 0.05 | H10: 0.4 | I10: 0.6924528302 | J10: =7/18 -> 0.3888888889 | K10: =8/18 -> 0.4444444444 | L10: 0.8042488619 | M10: =4/6 -> 0.6666666667 | N10: =3/6 -> 0.5
B11: 18 | C11: Cell#4-Cell#5 | D11: 232.7515656 | E11: 0.66 | F11: 0.6602949109 | G11: 0 | H11: 0.05 | I11: 0.5043409629 | J11: 0 | K11: 0.05 | L11: 0.5777491409 | M11: 0.05 | N11: 0.05
B12: 18 | C12: Cell#4-Cell#6 | D12: 127.8534833 | E12: 1.1 | F12: 0.6140096454 | G12: 0.05 | H12: 0.1 | I12: 0.4489668128 | J12: 0.1 | K12: 0.1 | L12: 0.5170212766 | M12: 0.2 | N12: 0.1
B13: 19 | C13: Cell#3-Cell#4 | D13: 73.4 | E13: 1.16 | F13: 0.5926430518 | G13: 0.1 | H13: 0.2
B14: 19 | C14: Cell#2-Cell#6 | D14: 47.7 | E14: 1.71 | F14: 0.5870020964 | G14: 0 | H14: 0.15 | I14: 0.2423076923 | J14: 0.5 | K14: 0.5 | L14: 0.1483594864 | M14: 0.5 | N14: 0.9
B15: 19 | C15: Cell#5-Cell#1 | D15: 16.7 | E15: 1.07 | F15: 0.6886227545 | G15: 0 | H15: 0
B16: 19 | C16: Cell#5-Cell#4 | D16: 28.6 | E16: 0.66 | F16: 0.7692307692 | G16: 0.1 | H16: 0.2
B17: 19 | C17: Cell#5-Cell#6 | D17: 11.6 | E17: 0.81 | F17: 0.4396551724 | G17: 0.05 | H17: 0.3
B18: 21 | C18: Cell#3-Cell#1 | D18: 65.2 | E18: 0.756 | F18: 0.5736196319 | G18: 0 | H18: =1/11 -> 0.09090909091 | I18: 0.4543568465 | J18: 0.4 | K18: 0.2
B19: 21 | C19: Cell#3-Cell#2 | D19: 19.7 | E19: 0.904 | F19: 0.5431472081 | G19: 0 | H19: =6/11 -> 0.5454545455 | I19: 0.359375 | J19: 0.4 | K19: 0.8
B20: 21 | C20: Cell#6-Cell#1 | D20: 90.9 | E20: 0.87 | F20: 0.6534653465 | G20: 0 | H20: 0 | I20: 0.5591603053 | J20: 0 | K20: 0.2
B21: 21 | C21: Cell#2-Cell#1 | D21: 191.5 | E21: 1.07 | F21: 0.5561357702 | G21: 0 | H21: 0.1 | I21: 0.5809968847 | J21: 0.05 | K21: 0.3 | L21: 0.4597233523 | M21: 0 | N21: 0.6
B22: 21 | C22: Cell#2-Cell#3 | D22: 215.5 | E22: 1.26 | F22: 0.5229698376 | G22: 0 | H22: 0.2 | I22: 0.5860986547 | J22: 0.05 | K22: 0.2 | L22: 0.3190789474 | M22: 0.2 | N22: 0.6
B23: 21 | C23: Cell#2-Cell#5 | D23: 117.9 | E23: 1.28 | F23: 0.5097540288 | G23: 0 | H23: 0.2 | I23: 0.4475218659 | J23: 0.05 | K23: 0.5 | L23: 0.3380109823 | M23: 0.1 | N23: 0.4
B24: 21 | C24: Cell#2-Cell#6 | D24: 12.9 | E24: 1.04 | F24: 0.6046511628 | G24: 0.25 | H24: 0.6 | I24: 0.5912408759 | J24: 0.8 | K24: 0.9 | L24: 0.5984848485 | M24: 1 | N24: 0.6
B25: 20 | C25: Cell#6-Cell#1 | D25: 145.6 | E25: 0.59 | F25: 0.5048076923 | G25: 0 | H25: 0 | I25: 0.4656370656 | J25: 0.05 | K25: 0.1 | L25: 0.2819010417 | M25: 0.25 | N25: 0.25
B26: 20 | C26: Cell#6-Cell#2 | D26: 306.8 | E26: 0.47 | F26: 0.471642764 | G26: 0 | H26: 0 | I26: 0.3854099419 | J26: 0.1 | K26: 0 | L26: 0.4362588085 | M26: 0.1 | N26: 0.1
C28: n | D28: 21 | E28: =COUNT(E6:E27) -> 21 | F28: 21 | G28: 21 | H28: 21 | I28: 17 | J28: 17 | K28: 17 | L28: 14 | M28: 14 | N28: 14
C29: mean | D29: 112.6177807 | E29: =AVERAGE(E6:E27) -> 0.9147619048 | F29: 0.5713873471 | G29: 0.03095238095 | H29: 0.1755411255 | I29: 0.5282871715 | J29: 0.2052287582 | K29: 0.3114379085 | L29: 0.4894006947 | M29: 0.2761904762 | N29: 0.3571428571
A32: Scn1a+/- P16-21 SURVIVOR
B33: 17 | C33: M#1-E#1 | D33: 115.292898 | E33: 0.61 | F33: 0.7086528816 | G33: 0 | H33: 0.05
B34: 17 | C34: M#1-E#2 | D34: 144.2620468 | E34: 0.71 | F34: 0.6456790892 | G34: 0 | H34: 0 | I34: 0.7512908778 | J34: 0.05 | K34: 0.2 | L34: 0.7438438438 | M34: 0.15 | N34: 0.1
B35: 17 | C35: M#1-M#2 | D35: 70.31737042 | E35: 0.65 | F35: 0.6068695901 | G35: 0 | H35: 0 | I35: 0.5943837754 | J35: 0.1 | K35: 0.1 | L35: 0.5241935484 | M35: 0.05 | N35: 0.2
B36: 17 | C36: E#1-M#2 | D36: 130.1241172 | E36: 0.49 | F36: 0.6702932163 | G36: 0 | H36: 0.2 | I36: 0.5254596888 | J36: 0.4 | K36: 0.35 | L36: 0.59375 | M36: 0.25 | N36: 0.2
B37: 17 | C37: E#2-M#1 | D37: 140.8280845 | E37: 0.48 | F37: 0.7520788271 | G37: 0 | H37: 0 | I37: 0.5944121508 | J37: 0 | K37: 0 | L37: 0.7023096664 | M37: 0 | N37: 0
B38: 18 | C38: M#2-E#1 | D38: 73.69653369 | E38: 0.49 | F38: 0.5605341813 | G38: 0 | H38: 0 | I38: 0.5921219822 | J38: 0.5 | K38: 0 | L38: 0.566 | M38: 0.2 | N38: 0.15
B39: 18 | C39: M#2-M#1 | D39: 77.179319 | E39: 0.43 | F39: 0.5740592413 | G39: 0 | H39: 0 | I39: 0.5828421742 | J39: 0 | K39: 0.1 | L39: 0.4651162791 | M39: 0.2 | N39: 0.2
B40: 17 | C40: M#2-M#1 | D40: 158.8644213 | E40: 0.6 | F40: 0.5081573838 | G40: 0 | H40: 0.05 | I40: 0.4022727273 | J40: 0.1 | K40: 0.15 | L40: 0.4150653344 | M40: 0 | N40: 0.1
B41: 21 | C41: M#1-M#2 | D41: 244.377362 | E41: 0.56 | F41: 0.4856967595 | G41: 0 | H41: 0.3 | I41: 0.4879012346 | J41: 0.25 | K41: 0.2 | L41: 0.4896474538 | M41: 0.25 | N41: 0.25
B42: 20 | C42: E#2-M#1 | D42: 75.16985545 | E42: 0.7 | F42: 0.4514979665 | G42: 0.15 | H42: 0.25 | I42: 0.7810150376 | J42: 0.15 | K42: 0.15 | L42: 0.8027444254 | M42: 0.2 | N42: 0.3
B43: 20 | C43: E#1-E#2 | D43: 237.4725512 | E43: 0.429 | F43: 0.6018535128 | G43: 0 | H43: 0.05 | I43: 0.5472166998 | J43: 0.1 | K43: 0.1
B44: 17 | C44: M#1-E#1 | D44: 89.30956603 | E44: 0.65 | F44: 0.6049923644 | G44: 0 | H44: 0 | I44: 0.5320793434 | J44: 0 | K44: 0 | L44: 0.4607911173 | M44: 0 | N44: 0.05
B45: 17 | C45: M#1-G#2 | D45: 155.2297541 | E45: 0.78 | F45: 0.6089434598 | G45: 0 | H45: 0.05 | I45: 0.6344663089 | J45: 0.1 | K45: 0 | L45: 0.5836491608 | M45: 0.1 | N45: 0.1
B46: 18 | C46: M#1-G#1 | D46: 107.8189357 | E46: 0.58 | F46: 0.5867620134 | G46: 0 | H46: 0 | I46: 0.6837686567 | J46: 0 | K46: 0 | L46: 0.5570291777 | M46: 0.05 | N46: 0.15
B47: 18 | C47: M#1-E#2 | D47: 214.434043 | E47: 0.72 | F47: 0.8030079596 | G47: 0 | H47: 0 | I47: 0.6763059701 | J47: 0 | K47: 0 | L47: 0.6243169399 | M47: 0 | N47: 0.05
B48: 19 | C48: M#2-E#2 | D48: 145.2012315 | E48: 0.58 | F48: 0.6764496971 | G48: 0 | H48: 0 | I48: 0.6646239554 | J48: 0 | K48: 0 | L48: 0.5342763874 | M48: 0 | N48: 0
B49: 19 | C49: M#2-G#1 | D49: 114.8389699 | E49: 0.6 | F49: 0.7763351987 | G49: 0 | H49: 0 | I49: 0.6288353958 | J49: 0 | K49: 0 | L49: 0.6295548602 | M49: 0 | N49: 0
B50: 19 | C50: M#2-G#2 | D50: 84.83896989 | E50: 0.51 | F50: 0.7410725756 | G50: 0 | H50: 0 | I50: 0.6531386861 | J50: 0 | K50: 0 | L50: 0.5203412073 | M50: 0 | N50: 0
B51: 19 | C51: E#1-M#2 | D51: 111.2043851 | E51: 0.7 | F51: 0.5720914831 | G51: 0 | H51: 0 | I51: 0.5993665875 | J51: 0.05 | K51: 0 | L51: 0.5942156004 | M51: 0 | N51: 0
B52: 19 | C52: G#2-M#2 | D52: 63.67360457 | E52: 0.74 | F52: 0.6849787349 | G52: 0 | H52: 0 | I52: 0.5627906977 | J52: 0.1 | K52: 0 | L52: 0.4475271411 | M52: 0 | N52: 0
B53: 21 | C53: Cell#2-Cell#1 | D53: 198.5254003 | E53: 0.61 | F53: 0.7258492102 | G53: 0 | H53: 0.05 | I53: 0.6281198003 | J53: 0.05 | K53: 0 | L53: 0.5140220092 | M53: 0 | N53: 0
B54: 21 | C54: Cell#2-Cell#3 | D54: 169.6926764 | E54: 0.73 | F54: 0.6953880478 | G54: 0 | H54: 0 | I54: 0.6243009659 | J54: 0 | K54: 0 | L54: 0.5164998146 | M54: 0.05 | N54: 0.1
B55: 21 | C55: Cell#2-Cell#4 | D55: 123.7229349 | E55: 0.93 | F55: 0.5938148615 | G55: 0 | H55: 0 | I55: 0.5279661017 | J55: 0.1 | K55: 0.2 | L55: 0.4412489729 | M55: 0.05 | N55: 0.2
B56: 21 | C56: Cell#2-Cell#6 | D56: 201.8682138 | E56: 0.74 | F56: 0.7872206162 | G56: 0 | H56: 0 | I56: 0.6830158087 | J56: 0 | K56: 0.05 | L56: 0.5898854208 | M56: 0.2 | N56: 0.05
B57: 18 | C57: Cell#4-Cell#3 | D57: 107.9253552 | E57: 0.63 | F57: 0.6151689191 | G57: 0 | H57: 0.1
B58: 22 | C58: Cell#4-Cell#1 | D58: 52.1 | E58: 0.86 | F58: 0.5393474088 | G58: 0 | H58: 0.1
B59: 22 | C59: Cell#5-Cell#1 | D59: 83.4 | E59: 0.89 | F59: 0.6139088729 | G59: 0 | H59: 0
B60: 21 | C60: Cell#4-Cell#6 | D60: 61.1 | E60: 0.94 | F60: 0.8461538462 | G60: 0 | H60: 0
B61: 20 | C61: Cell#5-Cell#2 | D61: 148 | E61: 1.012 | F61: 0.6648648649 | G61: 0 | H61: 0.15 | I61: 0.6163682864 | J61: 0.1 | K61: 0.2
B62: 20 | C62: Cell#5-Cell#4 | D62: 210.6 | E62: 0.98 | F62: 0.8053181387 | G62: 0 | H62: 0.05 | I62: 0.6547619048 | J62: 0.1 | K62: 0 | L62: 0.6839666358 | M62: 0 | N62: 0.1
B63: 20 | C63: Cell#5-Cell#6 | D63: 42.3 | E63: 0.854 | F63: 0.5460992908 | G63: 0 | H63: 0.1 | I63: 0.4891304348 | J63: 0.1 | K63: 0.1
B64: 20 | C64: Cell#2-Cell#5 | D64: 56.2 | E64: 0.758 | F64: 0.6478486895 | G64: 0 | H64: 0
B65: 22 | C65: Cell#6-Cell#2 | D65: 39.7 | E65: 0.52 | F65: 0.4978486895 | G65: 0.3 | H65: 0.35 | I65: 0.5175233645 | J65: 0.4 | K65: 0.2 | L65: 0.4493116395 | M65: 0.2 | N65: 0.3
B66: 21 | C66: Cell#3-Cell#1 | D66: 85.3 | E66: 0.8353501048 | F66: 0.7949640741 | G66: 0.1 | H66: 0.8
B67: 21 | C67: Cell#3-Cell#4 | D67: 65.83896989 | E67: 1.45 | F67: 0.7105679367 | G67: 0 | H67: 0 | I67: 0.6974246308 | J67: 0 | K67: 0 | L67: 0.5926886792 | M67: 0 | N67: 0.2
B68: 21 | C68: Cell#3-Cell#6 | D68: 149.6 | E68: 0.7759056604 | F68: 0.6430481283 | G68: 0 | H68: 0.2 | I68: 0.7130013831 | J68: 0 | K68: 0 | L68: 0.7434430804 | M68: 0 | N68: 0.5
B69: 21 | C69: Cell#5-Cell#1 | D69: 77.6 | E69: 1.18 | F69: 0.6945876289 | G69: 0 | H69: 0.05
B70: 21 | C70: Cell#5-Cell#6 | D70: 12.8 | E70: 1.38 | F70: 0.8477942628 | G70: 0.05 | H70: 0.2 | I70: 0.6071066419 | J70: 0.3 | K70: 0.2 | L70: 0.5046824451 | M70: 0.2 | N70: 0.6
B71: 20 | C71: Cell#6-Cell#4 | D71: 183.9 | E71: 1.2 | F71: 0.5220228385 | G71: 0 | H71: 0.25 | I71: 0.5024420024 | J71: 0.2 | K71: 0.2 | L71: 0.1907514451 | M71: 0.6 | N71: 0.4
B72: 20 | C72: Cell#5-Cell#2 | D72: 50.2 | E72: 1.46 | F72: 0.6992031873 | G72: 0 | H72: 0.05 | I72: 0.6737451737 | J72: 0 | K72: 0 | L72: 0.5594657115 | M72: 0 | N72: 0
B73: 20 | C73: Cell#5-Cell#4 | D73: 98.7 | E73: 1.07 | F73: 0.757852077 | G73: 0 | H73: 0 | I73: 0.720703125 | J73: 0 | K73: 0 | L73: 0.6085586616 | M73: 0.2 | N73: 0
B74: 20 | C74: Cell#2-Cell#1 | D74: 24.9 | E74: 0.89 | F74: 0.5823293173 | G74: 0.05 | H74: 0.25 | I74: 0.2772277228 | J74: 0.5 | K74: 0.2 | L74: 0.3086053412 | M74: 0.6 | N74: 0.7
B75: 20 | C75: Cell#2-Cell#3 | D75: 73.3 | E75: 0.72 | F75: 0.7230559345 | G75: 0 | H75: 0.1 | I75: 0.5358194308 | J75: 0.2 | K75: 0 | L75: 0.4882186616 | M75: 0.1 | N75: 0.1
B76: 20 | C76: Cell#2-Cell#4 | D76: 31.7 | E76: 0.87 | F76: 0.7728706625 | G76: 0.15 | H76: 0.25
B77: 20 | C77: Cell#2-Cell#6 | D77: 16.8 | E77: 0.78 | F77: 0.5833333333 | G77: 0 | H77: 0.3
B78: 19 | C78: Cell#6-Cell#4 | D78: 229.2 | E78: 0.88 | F78: 0.6487783595 | G78: 0 | H78: 0 | I78: 0.7838730998 | J78: 0 | K78: =1/11 -> 0.09090909091 | L78: 0.720476348 | M78: 0 | N78: 0
B79: 19 | C79: Cell#6-Cell#5 | D79: 257.6 | E79: 1.02 | F79: 0.6098602484 | G79: 0 | H79: 0.1 | I79: 0.6002581756 | J79: 0 | K79: 0 | L79: 0.5090755593 | M79: 0 | N79: 0.1
B80: 20 | C80: Cell#5-Cell#6 | D80: 89.2 | E80: 0.66 | F80: 0.7029147982 | G80: 0 | H80: =2/27 -> 0.07407407407 | I80: 0.9231547017 | J80: 0 | K80: 0.1 | L80: 0.7911877395 | M80: 0.2 | N80: 0.3
B81: 20 | C81: Cell#4-Cell#1 | D81: 114.9 | E81: 1.55 | F81: 0.4891209748 | G81: 0 | H81: 0 | I81: 0.5478806907 | J81: 0 | K81: 0
B82: 20 | C82: Cell#4-Cell#2 | D82: 95.6 | E82: 0.95 | F82: 0.7520920502 | G82: 0 | H82: 0.2 | I82: 0.4798331015 | J82: 0.4 | K82: 0.4
B83: 20 | C83: Cell#4-Cell#6 | D83: 102.3 | E83: 0.8 | F83: 0.4594330401 | G83: 0 | H83: 0.05 | I83: 0.4025787966 | J83: 0 | K83: 0
B84: 20 | C84: Cell#5-Cell#2 | D84: 164.8185617 | E84: 0.97 | F84: 0.5449775112 | G84: 0 | H84: 0 | I84: 0.5798354777 | J84: 0 | K84: 0 | L84: 0.3739591219 | M84: 0 | N84: 0
B85: 20 | C85: Cell#5-Cell#6 | D85: 56.6 | E85: 0.92 | F85: 0.6961130742 | G85: =1/16 -> 0.0625 | H85: =4/16 -> 0.25
B86: 21 | C86: Cell#2-Cell#5 | D86: 58.5 | E86: 1.05 | F86: 0.535042735 | G86: 0 | H86: =12/20 -> 0.6 | I86: 0.7222963952 | J86: 0.55 | K86: 0.35 | L86: 0.7097345133 | M86: 0.3 | N86: 0.45
B87: 19 | C87: Cell#5-Cell#6 | D87: 227.4 | E87: 0.45 | F87: 0.6635883905 | G87: 0 | H87: 0.05 | I87: 0.7100330761 | J87: 0.1 | K87: 0.2 | L87: 0.4606890459 | M87: 0.2 | N87: 0.2
C89: n | D89: 55 | E89: =COUNT(E33:E88) -> 55 | F89: 55 | G89: 55 | H89: 55 | I89: 44 | J89: 44 | K89: 44 | L89: 38 | M89: 38 | N89: 38
C90: mean | D90: 114.8368388 | E90: =AVERAGE(E33:E88) -> 0.8058955594 | F90: 0.6478616028 | G90: 0.01568181818 | H90: 0.1022558923 | I90: 0.6071066419 | J90: 0.1136363636 | K90: 0.08729338843 | L90: 0.5529169208 | M90: 0.1144736842 | N90: 0.1618421053
A93: Scn1a+/- P35-56
B94: 39 | C94: E#2-E#1 | D94: 273.3930556 | E94: 0.799 | F94: 0.421734683 | G94: 0 | H94: 0.15 | I94: 0.4958759485 | J94: 0.15 | K94: 0.15 | L94: 0.4959546926 | M94: 0.05 | N94: 0.05
B95: 39 | C95: M#1-M#2 | D95: 245.2788509 | E95: 0.71 | G95: 0 | H95: 0
B96: 39 | C96: E#1-M#1 | D96: 51.54749136 | E96: 0.1 | G96: 0.05 | H96: 0.3
B97: 39 | C97: M#2-M#1 | D97: 109.7920791 | E97: 0.86 | F97: 0.8597927892 | G97: 0 | H97: 0.3 | I97: 0.6347482725 | J97: 0.35 | K97: 0.45 | L97: 0.648381295 | M97: 0.25 | N97: 0.55
B98: 35 | C98: E#1-E#2 | D98: 93.28032879 | E98: 0.72 | F98: 0.6357483411 | G98: 0 | H98: 0.3 | I98: 0.6509803922 | J98: 0.35 | K98: 0.45 | L98: 0.595003785 | M98: 0.25 | N98: 0.4
B99: 35 | C99: M#1-E#1 | D99: 34.42301094 | E99: 1.27 | F99: 0.6209722036 | G99: 0.05 | H99: 0.15 | I99: 0.749306711 | J99: 0.05 | K99: 0.1 | L99: 0.6686960934 | M99: 0.3 | N99: 0.75
B100: 35 | C100: M#1-M#2 | D100: 95.20004144 | E100: 1.08 | F100: 0.7330560075 | G100: 0 | H100: 0.15 | I100: 0.7747808496 | J100: 0.2 | K100: 0.4 | L100: 0.6547472256 | M100: 0.25 | N100: 0.7
B101: 48 | C101: Cell#4-Cell#1 | D101: 117.3958397 | E101: 0.72 | F101: 0.3688036184 | G101: 0 | H101: 0.2 | I101: 0.3791208791 | J101: 0.45 | K101: 0.6 | L101: 0.4352574103 | M101: 0.5 | N101: 0.45
B102: 49 | C102: Cell#3-Cell#1 | D102: 159.6257294 | E102: 0.61 | F102: 0.7971470759 | G102: 0 | H102: 0 | I102: 0.7523316062 | J102: 0 | K102: 0 | L102: 0.6675313446 | M102: 1 | N102: 0
B103: 56 | C103: Cell#3-Cell#4 | D103: 46.70837914 | E103: 0.87 | F103: 0.5931944218 | G103: 0.05 | H103: 0.1 | I103: 0.5193621868 | J103: 0.15 | K103: 0.2 | L103: 0.4644808743 | M103: 0.15 | N103: 0.3
B104: 56 | C104: Cell#6-Cell#2 | D104: 70.33374181 | E104: 0.67 | F104: 0.693744695 | G104: 0 | H104: 0 | I104: 0.5896510229 | J104: 0.1 | K104: 0.15 | L104: 0.4542124542 | M104: 0.1 | N104: 0.15
B105: 56 | C105: Cell#6-Cell#4 | D105: 108.5291734 | E105: 0.48 | F105: 0.7277798879 | G105: 0 | H105: 0 | I105: 0.6913827655 | J105: 0 | K105: 0 | L105: 0.6343012704 | M105: 0 | N105: 0.05
B106: 60 | C106: Cell#3-Cell#1 | D106: 163.907523 | E106: 0.81 | F106: 0.6718360497 | G106: 0 | H106: 0.05 | I106: 0.7566037736 | J106: 0.05 | K106: 0.25 | L106: 0.5750798722 | M106: 0.1 | N106: 0.35
B107: 60 | C107: Cell#3-Cell#6 | D107: 121.5680571 | E107: 0.81 | F107: 0.8253839524 | G107: 0 | H107: 0
B108: 56 | C108: Cell#6-Cell#5 | D108: 187.3788581 | E108: 1.39 | F108: 0.6216137121 | G108: 0 | H108: 0.05 | I108: 0.4808853119 | J108: 0 | K108: 0
B109: 37 | C109: Cell#5-Cell#2 | D109: 26.3 | E109: 0.539 | F109: 0.897338403 | G109: 0.05 | H109: 0.3 | I109: 0.7455357143 | J109: 0.35 | K109: 0.4 | L109: 0.5511669689 | M109: 0.25 | N109: 0.4
B110: 38 | C110: Cell#4-Cell#6 | D110: 29.7 | E110: 0.61 | F110: 0.6565656566 | G110: 0.15 | H110: 0.45 | I110: 0.6819923372 | J110: 0.35 | K110: 0.5 | L110: 0.5704225352 | M110: 0.7 | N110: 0.6
B111: 38 | C111: Cell#6-Cell#4 | D111: 292.1 | E111: 0.64 | F111: 0.49195481 | G111: 0 | H111: 0.15 | I111: 0.6309093349 | J111: 0.25 | K111: 0.15 | L111: 0.6598455486 | M111: 0.25 | N111: 0.35
B112: 35 | C112: Cell#5-Cell#6 | D112: 37.3 | E112: 0.76 | F112: 0.7399463807 | G112: 0.15 | H112: 0.1 | I112: 0.4938574939 | J112: =5/20 -> 0.25 | K112: 0.25 | L112: 0.5260663507 | M112: 0.15 | N112: 0.3
B113: 36 | C113: Cell#4-Cell#1 | D113: 83.1 | E113: 1.45 | F113: 0.5427196149 | G113: 0.1 | H113: 0.45 | I113: 0.9815384615 | J113: 0.4 | K113: 0.3 | L113: 0.7020109689 | M113: 0.25 | N113: 0.45
B114: 36 | C114: Cell#4-Cell#5 | D114: 72.8 | E114: 1.41 | F114: 0.967032967 | G114: 0.2 | H114: 0.45 | I114: 0.4177693762 | J114: 0.55 | K114: 0.5 | L114: 0.9197396963 | M114: 0.6 | N114: 0.65
B115: 41 | C115: Cell#1-Cell#6 | D115: 304.8 | E115: 0.95 | F115: 0.5065616798 | G115: 0 | H115: 0
B116: 42 | C116: Cell#1-Cell#6 | D116: 186.6 | E116: 0.68 | F116: 0.7100750268 | G116: 0 | H116: 0 | I116: 0.5606449249 | J116: 0.1 | K116: 0.2 | L116: 0.5202655486 | M116: 0.2 | N116: 0.2
C118: n | D118: 23 | E118: =COUNT(E94:E117) -> 23 | F118: 21 | G118: 23 | H118: 23 | I118: 19 | J118: 19 | K118: 19 | L118: 18 | M118: 18 | N118: 18
C119: mean | D119: 126.56792 | E119: =AVERAGE(E94:E117) -> 0.8233913043 | F119: 0.6706191417 | G119: 0.0347826087 | H119: 0.1586956522 | I119: 0.6309093349 | J119: 0.2157894737 | K119: 0.2657894737 | L119: 0.5968424408 | M119: 0.2972222222 | N119: 0.3722222222
A122: WT P16-21
B123: 20 | C123: E#2-G#1 | D123: 295.5442525 | E123: 0.91 | F123: 0.6610326327 | G123: 0 | H123: 0.15 | I123: 0.5450176226 | J123: 0.1 | K123: 0.25 | L123: 0.5355691057 | M123: 0.15 | N123: 0.2
B124: 20 | C124: G#2-M#2 | D124: 117.2968246 | E124: 0.64 | F124: 0.5523423685 | G124: 0 | H124: 0.05 | I124: 0.7314390467 | J124: 0.1 | K124: 0.3 | L124: 0.6666666667 | M124: 0.45 | N124: 0.25
B125: 16 | C125: Cell#1-Cell#2 | D125: 191.170935 | E125: 0.76 | F125: 0.5678750869 | G125: 0 | H125: 0 | I125: 0.5360272639 | J125: 0.05 | K125: 0.05 | L125: 0.3969400765 | M125: 0.1 | N125: 0.15
B126: 18 | C126: Cell#2-Cell#1 | D126: 338.5982481 | E126: 0.78 | F126: 0.660978104 | G126: 0 | H126: 0 | I126: 0.5621329575 | J126: 0 | K126: 0.05 | L126: 0.4483224499 | M126: 0.05 | N126: 0.1
B127: 19 | C127: Cell#5-Cell#1 | D127: 104.9136469 | E127: 0.71 | F127: 0.634981014 | G127: 0 | H127: 0.1 | I127: 0.547761194 | J127: 0 | K127: 0.05 | L127: 0.4991314418 | M127: 0 | N127: 0.2
B128: 21 | C128: Cell#5-Cell#1 | D128: 498.2 | E128: 0.39 | F128: 0.5923493678 | G128: 0.0016 | H128: 0 | I128: 0.5362129957 | J128: 0 | K128: 0 | L128: 0.5221354167 | M128: 0 | N128: 0
B129: 21 | C129: Cell#5-Cell#4 | D129: 77.18119053 | E129: 0.57 | F129: 0.5629566906 | G129: 0.0166 | H129: 0.15 | I129: 0.4730127576 | J129: 0.3 | K129: 0.4 | L129: 0.7565415245 | M129: 0.35 | N129: 0.5
B130: 21 | C130: Cell#6-Cell#3 | D130: 165.0273555 | E130: 0.66 | F130: 0.6618163023 | G130: 0 | H130: 0.05 | I130: 0.4678957406 | J130: 0 | K130: 0 | L130: 0.389010989 | M130: 0 | N130: =1/14 -> 0.07142857143
B131: 21 | C131: Cell#6-Cell#5 | D131: 327.938154 | E131: 0.57 | F131: 0.588110576 | G131: 0 | H131: 0 | I131: 0.5326763485 | J131: 0 | K131: 0 | L131: 0.5724250174 | M131: 0 | N131: 0
B132: 21 | C132: Cell#1-Cell#3 | D132: 183.1620562 | E132: 0.62 | F132: 0.4546774856 | G132: 0 | H132: 0
B133: 21 | C133: Cell#1-Cell#5 | D133: 100.493248 | E133: 0.71 | F133: 0.6655179073 | G133: 0 | H133: 0.14
B134: 21 | C134: Cell#1-Cell#2 | D134: 83.02853338 | E134: 0.63 | F134: 0.7381396386 | G134: 0 | H134: 0.15 | I134: 0.6185185185 | J134: 0.05 | K134: 0.1 | L134: 0.7411764706 | M134: 0 | N134: 0.35
B135: 21 | C135: Cell#1-Cell#5 | D135: 283.2909598 | E135: 0.64 | F135: 0.7765913609 | G135: 0 | H135: 0 | I135: 0.7466273187 | J135: 0 | K135: 0 | L135: 0.5748628258 | M135: 0 | N135: 0.15
B136: 21 | C136: Cell#1-Cell#6 | D136: 78.10475651 | E136: 0.81 | F136: 0.7658672534 | G136: 0 | H136: 0 | I136: 0.6158301158 | J136: 0 | K136: 0.1 | L136: 0.808681672 | M136: 0 | N136: 0
B137: 21 | C137: Cell#5-Cell#1 | D137: 352.2793582 | E137: 0.78 | F137: 0.7748630434 | G137: 0 | H137: 0 | I137: 0.7392588614 | J137: 0 | K137: 0 | L137: 0.6543042772 | M137: 0.1 | N137: 0.15
B138: 21 | C138: Cell#5-Cell#2 | D138: 119.0263318 | E138: 0.67 | F138: 0.8744062843 | G138: 0 | H138: 0.05 | I138: 0.7188916877 | J138: 0 | K138: 0.2 | L138: 0.7306698002 | M138: 0.05 | N138: 0
B139: 16 | C139: Cell#3-Cell#1 | D139: 444.7 | E139: 0.49 | F139: 0.6244659321 | G139: 0 | H139: 0 | I139: 0.616622575 | J139: 0 | K139: 0 | L139: 0.4338487973 | M139: 0 | N139: 0
B140: 16 | C140: Cell#2-Cell#1 | D140: 126.1 | E140: 0.49 | F140: 0.4853291039 | G140: 0 | H140: 0 | I140: 0.6038610039 | J140: 0 | K140: 0 | L140: 0.4542857143 | M140: 0 | N140: 0.05
B141: 16 | C141: Cell#2-Cell#5 | D141: 136.4 | E141: 0.733 | F141: 0.5469208211 | G141: 0 | H141: 0 | I141: 0.5993589744 | J141: 0 | K141: 0 | L141: 0.5212264151 | M141: 0.05 | N141: 0
B142: 20 | C142: Cell#4-Cell#2 | D142: 137.1 | E142: 0.64 | F142: 0.7016776076 | G142: 0 | H142: 0 | I142: 0.5925661187 | J142: 0 | K142: 0 | L142: 0.4523206751 | M142: 0.05 | N142: 0.05
B143: 20 | C143: Cell#5-Cell#3 | D143: 123.3 | E143: 0.381 | F143: 0.6350364964 | G143: 0 | H143: 0 | I143: 0.5876685934 | J143: 0 | K143: 0.05 | L143: 0.4036568214 | M143: 0 | N143: 0
B144: 20 | C144: Cell#2-Cell#1 | D144: 270.3 | E144: 0.38 | F144: 0.6004439512 | G144: 0 | H144: 0 | I144: 0.6756255792 | J144: 0 | K144: 0 | L144: -0.5216234198 | M144: 0 | N144: 0.05
B145: 20 | C145: Cell#2-Cell#3 | D145: 108.1 | E145: 0.54 | F145: 0.7789084181 | G145: 0 | H145: 0.15 | I145: 0.6663755459 | J145: 0.1 | K145: 0.2 | L145: 0.7016885553 | M145: 0.1 | N145: 0.2
B146: 21 | C146: Cell#2-Cell#1 | D146: 129.8 | E146: 0.6 | F146: 0.6479198767 | G146: 0 | H146: 0.045 | I146: 0.5857275255 | J146: 0 | K146: 0 | L146: 0.5399610136 | M146: 0 | N146: 0
B147: 21 | C147: Cell#2-Cell#6 | D147: 308.9 | E147: 0.55 | F147: 0.6328909032 | G147: 0 | H147: 0 | I147: 0.637822154 | J147: 0 | K147: 0 | L147: 0.5510660504 | M147: 0 | N147: 0
B148: 21 | C148: Cell#5-Cell#1 | D148: 130.9 | E148: 0.43 | F148: 0.6088617265 | G148: 0 | H148: 0 | I148: 0.6619854722 | J148: 0 | K148: 0 | L148: 0.4551951622 | M148: 0 | N148: 0.05
B149: 21 | C149: Cell#5-Cell#3 | D149: 123.5 | E149: 0.46 | F149: 0.5813765182 | G149: 0 | H149: 0.029 | I149: 0.6218441273 | J149: 0.064 | K149: 0.032 | L149: 0.5523282619 | M149: 0 | N149: 0.1
B150: 17 | C150: Cell#1-Cell#4 | D150: 296.7 | E150: 0.65 | F150: 0.6548702393 | G150: 0 | H150: 0 | I150: 0.5393028025 | J150: 0 | K150: 0 | L150: 0.801501251 | M150: 0 | N150: 0
B151: 17 | C151: Cell#3-Cell#2 | D151: 327.6 | E151: 0.61 | F151: 0.7182539683 | G151: 0 | H151: 0 | I151: 0.773539353 | J151: 0 | K151: 0 | L151: 0.4348341232 | M151: 0 | N151: 0
B152: 17 | C152: Cell#3-Cell#4 | D152: 231.5 | E152: 0.64 | F152: 0.4496760259 | G152: 0 | H152: 0 | I152: 0.6834677419 | J152: 0.05 | K152: 0.05 | L152: 0.7268887846 | M152: 0.15 | N152: 0.15
B153: 17 | C153: Cell#3-Cell#5 | D153: 92.3 | E153: 0.58 | F153: 0.5579631636 | G153: 0 | H153: 0.1 | I153: 0.5604938272 | J153: 0.2 | K153: 0.1 | L153: 0.4624724062 | M153: 0.2 | N153: 0.15
B154: 17 | C154: Cell#3-Cell#6 | D154: 88.9 | E154: 0.56 | F154: 0.6400449944 | G154: 0 | H154: 0.05 | I154: 0.7719869707 | J154: 0.2 | K154: 0.05 | L154: 0.3671245855 | M154: 0.1 | N154: 0.2
C156: n | D156: =COUNT(D123:D155) -> 32 | E156: 32 | F156: 32 | G156: 32 | H156: 32 | I156: 30 | J156: 30 | K156: 30 | L156: 30 | M156: 30 | N156: 30
C157: mean | D157: =AVERAGE(D123:D155) -> 199.7298703 | E157: 0.612 | F157: 0.637410777 | G157: 0.00056875 | H157: 0.0379375 | I157: 0.6183183598 | J157: 0.04046666667 | K157: 0.06606666667 | L157: 0.5211070977 | M157: 0.06333333333 | N157: 0.104047619
A160: WT P35-56
B161: 56 | C161: Cell#2-Cell#5 | D161: 92.82899244 | E161: 0.6 | F161: 0.6032376431 | G161: 0 | H161: 0.05 | I161: 0.5211930926 | J161: 0 | K161: 0.15 | L161: 0.4965243297 | M161: =5/28 -> 0.1785714286 | N161: =1/28 -> 0.03571428571
B162: 56 | C162: Cell#2-Cell#6 | D162: 161.0813587 | E162: 0.6 | F162: 0.5494377087 | G162: 0 | H162: 0 | I162: 0.548245614 | J162: 0 | K162: 0 | L162: 0.5473297542 | M162: =1/30 -> 0.03333333333 | N162: 0
B163: 46 | C163: Cell#2-Cell#5 | D163: 77.51288401 | E163: 0.51 | F163: 0.6358120132 | G163: 0 | H163: 0.1
B164: 47 | C164: Cell#3-Cell#2 | D164: 205.355787 | E164: 0.52 | F164: 0.578017182 | G164: 0 | H164: 0 | I164: 0.9353796446 | J164: 0 | K164: 0 | L164: 0.5270031768 | M164: 0.05 | N164: 0.1
B165: 47 | C165: Cell#3-Cell#5 | D165: 116.3 | E165: 0.55 | F165: 0.6448839209 | G165: 0.033 | H165: 0
B166: 36 | C166: Cell#1-Cell#5 | D166: 63.06 | E166: 0.81 | F166: 0.619885823 | G166: 0 | H166: 0.35 | I166: 0.5093457944 | J166: 0.15 | K166: 0.2 | L166: 0.5456790123 | M166: 0.3 | N166: 0.35
B167: 48 | C167: Cell#5-Cell#2 | D167: 111.1 | E167: 0.75 | F167: 0.6885688569 | G167: 0 | H167: 0.1 | I167: 0.6886715566 | J167: 0 | K167: 0.2 | L167: 0.6063535912 | M167: 0.05 | N167: 0.1
B168: 49 | C168: Cell#3-Cell#1 | D168: 161.3 | E168: 0.65 | F168: 0.5759454433 | G168: 0 | H168: 0 | I168: 0.4747729566 | J168: 0 | K168: 0 | L168: 0.4715881496 | M168: 0.05 | N168: 0.1
B169: 49 | C169: Cell#5-Cell#1 | D169: 64.1 | E169: 0.64 | F169: 0.6911076443 | G169: 0 | H169: 0.05 | I169: 0.8002392344 | J169: 0.05 | K169: 0.2 | L169: 0.8325358852 | M169: 0.1 | N169: 0.2
B170: 50 | C170: Cell#1-Cell#2 | D170: 279.4 | E170: 0.4 | F170: 0.9158911954 | G170: 0 | H170: 0
B171: 50 | C171: Cell#5-Cell#2 | D171: 193.9 | E171: 0.68 | F171: 0.9608045384 | G171: 0 | H171: 0.05
B172: 42 | C172: Cell#1-Cell#6 | D172: 287 | E172: 0.47 | F172: 0.5090592334 | G172: 0 | H172: 0 | I172: 0.4738520408 | J172: 0 | K172: 0.2 | L172: 0.4776156942 | M172: =3/15 -> 0.2 | N172: =2/15 -> 0.1333333333
B173: 40 | C173: Cell#1-Cell#3 | D173: 329.5 | E173: 0.5 | F173: 0.6989377845 | G173: 0 | H173: 0 | I173: 0.6824959853 | J173: 0 | K173: 0 | L173: 0.6090493137 | M173: 0 | N173: 0.05
B174: 35 | C174: Cell#3-Cell#6 | D174: 112.7 | E174: 0.47 | F174: 0.5572315883 | G174: 0 | H174: 0 | I174: 0.6480754124 | J174: 0 | K174: 0 | L174: 0.4551227773 | M174: 0 | N174: 0
C176: n | D176: =COUNT(D161:D175) -> 14 | E176: 14 | F176: 14 | G176: 14 | H176: 14 | I176: 10 | J176: 10 | K176: 10 | L176: 10 | M176: 10 | N176: 10
C177: mean | D177: =AVERAGE(D161:D175) -> 161.0813587 | E177: 0.5821428571 | F177: 0.6592014697 | G177: 0.002357142857 | H177: 0.05 | I177: 0.6282271332 | J177: 0.02 | K177: 0.095 | L177: 0.5568801684 | M177: 0.09619047619 | N177: 0.1069047619
